[Event "*** SCC Grand Prix: Titled Tuesday Blitz"]
[Site "Chess.com"]
[Date "2020.07.21"]
[Round "9"]
[White "Thipsay"]
[Black "Quattroporte300"]
[Result "1-0"]
[WhiteElo "2472"]
[BlackElo "2349"]
[TimeControl "180+1"]
[EndTime "11:48:00 PDT"]
[Termination "Thipsay won on time"]

1. e4 {[%clk 0:03:00.9]} 1... e5 {[%clk 0:02:58]} 2. Nf3 {[%clk 0:03:00.9]} 2...
Nc6 {[%clk 0:02:53.5]} 3. Bb5 {[%clk 0:03:00.6]} 3... a6 {[%clk 0:02:53.7]} 4.
Ba4 {[%clk 0:03:00.5]} 4... Nf6 {[%clk 0:02:54.1]} 5. O-O {[%clk 0:03:00.4]}
5... Be7 {[%clk 0:02:53]} 6. Re1 {[%clk 0:03:00.3]} 6... b5 {[%clk 0:02:53.5]}
7. Bb3 {[%clk 0:03:00.3]} 7... O-O {[%clk 0:02:54.4]} 8. a4 {[%clk 0:02:55.5]}
8... Na5 {[%clk 0:02:53.7]} 9. Ba2 {[%clk 0:02:49.1]} 9... d6 {[%clk 0:02:52.6]}
10. axb5 {[%clk 0:02:40.2]} 10... Bb7 {[%clk 0:02:46.3]} 11. bxa6 {[%clk
0:02:37.7]} 11... Bxe4 {[%clk 0:02:41.3]} 12. b4 {[%clk 0:02:34.5]} 12... Nc6
{[%clk 0:02:33.2]} 13. b5 {[%clk 0:02:32.7]} 13... Nb4 {[%clk 0:02:23.1]} 14.
Bb3 {[%clk 0:02:30.7]} 14... Qd7 {[%clk 0:02:16.5]} 15. Nc3 {[%clk 0:02:29.9]}
15... Bg6 {[%clk 0:02:08.7]} 16. Ba3 {[%clk 0:02:27.3]} 16... c5 {[%clk
0:01:52.6]} 17. Bxb4 {[%clk 0:02:08.7]} 17... cxb4 {[%clk 0:01:52.3]} 18. Nd5
{[%clk 0:02:08.8]} 18... Rab8 {[%clk 0:01:27.6]} 19. a7 {[%clk 0:02:01.2]} 19...
Ra8 {[%clk 0:01:04]} 20. b6 {[%clk 0:01:34.2]} 20... Bd8 {[%clk 0:01:01.8]} 21.
Nxf6+ {[%clk 0:01:33.9]} 21... gxf6 {[%clk 0:00:56.5]} 22. Bd5 {[%clk
0:01:30.7]} 22... Bxb6 {[%clk 0:00:56.8]} 23. Bxa8 {[%clk 0:01:30.7]} 23... Rxa8
{[%clk 0:00:56.4]} 24. Ra6 {[%clk 0:01:21.8]} 24... Qb7 {[%clk 0:00:48.3]} 25.
Ra2 {[%clk 0:01:18.6]} 25... Rxa7 {[%clk 0:00:47.7]} 26. Rxa7 {[%clk 0:01:18.1]}
26... Qxa7 {[%clk 0:00:47.9]} 27. Re2 {[%clk 0:01:17.8]} 27... f5 {[%clk
0:00:40]} 28. h3 {[%clk 0:01:16.3]} 28... e4 {[%clk 0:00:36.5]} 29. Nh4 {[%clk
0:01:15.8]} 29... Bh5 {[%clk 0:00:36.8]} 30. Nxf5 {[%clk 0:01:12.2]} 30... Bxf2+
{[%clk 0:00:24.6]} 31. Kh2 {[%clk 0:01:10.9]} 31... Bxe2 {[%clk 0:00:13.6]} 32.
Qxe2 {[%clk 0:01:10.4]} 32... Kf8 {[%clk 0:00:06.9]} 33. Qxe4 {[%clk 0:01:06.8]}
33... Bc5 {[%clk 0:00:03]} 34. Qg4 {[%clk 0:01:05.6]} 34... Ke8 {[%clk
0:00:02.5]} 35. Qg8+ {[%clk 0:01:05.2]} 35... Kd7 {[%clk 0:00:03.1]} 36. Qxf7+
{[%clk 0:01:05.3]} 36... Kc6 {[%clk 0:00:03.8]} 37. Qe8+ {[%clk 0:01:03.8]}
37... Kd5 {[%clk 0:00:02.4]} 38. d3 {[%clk 0:01:01.6]} 38... Bd4 {[%clk
0:00:01.4]} 39. Qe4+ {[%clk 0:01:00.8]} 39... Kc5 {[%clk 0:00:01.4]} 40. Qxd4+
{[%clk 0:01:01.3]} 1-0

[Event "*** SCC Grand Prix: Titled Tuesday Blitz"]
[Site "Chess.com"]
[Date "2020.07.21"]
[Round "9"]
[White "kasparicy"]
[Black "axvesik"]
[Result "0-1"]
[WhiteElo "2354"]
[BlackElo "2475"]
[TimeControl "180+1"]
[EndTime "11:48:01 PDT"]
[Termination "axvesik won by checkmate"]

1. e4 {[%clk 0:03:00.9]} 1... e6 {[%clk 0:02:58.4]} 2. d4 {[%clk 0:02:54.2]}
2... d5 {[%clk 0:02:59.3]} 3. Nd2 {[%clk 0:02:54]} 3... c5 {[%clk 0:02:58.2]} 4.
Ngf3 {[%clk 0:02:53.1]} 4... cxd4 {[%clk 0:02:52.6]} 5. exd5 {[%clk 0:02:53.1]}
5... Qxd5 {[%clk 0:02:50.3]} 6. Bc4 {[%clk 0:02:53.2]} 6... Qd7 {[%clk
0:02:50.2]} 7. Qe2 {[%clk 0:02:51.5]} 7... Nc6 {[%clk 0:02:49.3]} 8. Nb3 {[%clk
0:02:52.1]} 8... a6 {[%clk 0:02:46.5]} 9. Bg5 {[%clk 0:02:52.1]} 9... b5 {[%clk
0:02:45.2]} 10. Bd3 {[%clk 0:02:52.6]} 10... Be7 {[%clk 0:02:26]} 11. O-O-O
{[%clk 0:02:43.9]} 11... Bxg5+ {[%clk 0:02:15.3]} 12. Nxg5 {[%clk 0:02:44.8]}
12... Nf6 {[%clk 0:02:14.2]} 13. Kb1 {[%clk 0:02:44.2]} 13... O-O {[%clk
0:01:56.6]} 14. h4 {[%clk 0:02:42.6]} 14... e5 {[%clk 0:01:55.3]} 15. Nc5 {[%clk
0:01:54.4]} 15... Qd6 {[%clk 0:01:47.7]} 16. Nce4 {[%clk 0:01:53.7]} 16... Nxe4
{[%clk 0:01:47.3]} 17. Nxe4 {[%clk 0:01:53.9]} 17... Qe7 {[%clk 0:01:43.4]} 18.
g4 {[%clk 0:01:52.7]} 18... Nb4 {[%clk 0:01:39.7]} 19. h5 {[%clk 0:01:48.9]}
19... Qe6 {[%clk 0:01:32.2]} 20. b3 {[%clk 0:01:45.9]} 20... Nxd3 {[%clk
0:01:27.6]} 21. Rxd3 {[%clk 0:01:45.5]} 21... f5 {[%clk 0:01:28.2]} 22. gxf5
{[%clk 0:01:41.8]} 22... Qxf5 {[%clk 0:01:28.2]} 23. Rg1 {[%clk 0:01:36.1]}
23... Ra7 {[%clk 0:01:20.7]} 24. Rdg3 {[%clk 0:01:32.2]} 24... Be6 {[%clk
0:01:16.9]} 25. Ng5 {[%clk 0:00:45.9]} 25... Bd5 {[%clk 0:01:10.7]} 26. Nh3
{[%clk 0:00:27.9]} 26... Rc7 {[%clk 0:01:04.9]} 27. f4 {[%clk 0:00:20.5]} 27...
Rxc2 {[%clk 0:01:00.2]} 28. Rxg7+ {[%clk 0:00:17.1]} 28... Kh8 {[%clk
0:00:59.9]} 29. Qxc2 {[%clk 0:00:07.9]} 29... Be4 {[%clk 0:00:59.4]} 30. Qxe4
{[%clk 0:00:08.2]} 30... Qxe4+ {[%clk 0:00:59.2]} 31. Ka1 {[%clk 0:00:09.1]}
31... d3 {[%clk 0:00:50.2]} 32. h6 {[%clk 0:00:07.6]} 32... Qd4+ {[%clk
0:00:46.8]} 33. Kb1 {[%clk 0:00:08]} 33... d2 {[%clk 0:00:46.9]} 34. Rd1 {[%clk
0:00:07.9]} 34... Rc8 {[%clk 0:00:42.7]} 35. Ng5 {[%clk 0:00:07.6]} 35... Qd3+
{[%clk 0:00:42.7]} 36. Kb2 {[%clk 0:00:07.1]} 36... Rc2+ {[%clk 0:00:42.2]} 37.
Ka3 {[%clk 0:00:05.2]} 37... Qd6+ {[%clk 0:00:42.1]} 38. b4 {[%clk 0:00:05.5]}
38... Qd3# {[%clk 0:00:41.5]} 0-1

[Event "*** SCC Grand Prix: Titled Tuesday Blitz"]
[Site "Chess.com"]
[Date "2020.07.21"]
[Round "9"]
[White "Jumbo"]
[Black "IwkooO"]
[Result "1-0"]
[WhiteElo "2859"]
[BlackElo "2638"]
[TimeControl "180+1"]
[EndTime "11:48:02 PDT"]
[Termination "Jumbo won on time"]

1. d4 {[%clk 0:03:00.9]} 1... Nf6 {[%clk 0:02:57.6]} 2. Bf4 {[%clk 0:02:59.2]}
2... g6 {[%clk 0:02:56.9]} 3. Nf3 {[%clk 0:02:58.1]} 3... Bg7 {[%clk 0:02:56.8]}
4. e3 {[%clk 0:02:58.2]} 4... d6 {[%clk 0:02:55]} 5. Be2 {[%clk 0:02:57.8]} 5...
O-O {[%clk 0:02:53.5]} 6. h3 {[%clk 0:02:57.2]} 6... Nbd7 {[%clk 0:02:53.6]} 7.
O-O {[%clk 0:02:57.4]} 7... b6 {[%clk 0:02:54.1]} 8. c4 {[%clk 0:02:54.4]} 8...
Bb7 {[%clk 0:02:53.5]} 9. Qc2 {[%clk 0:02:53.7]} 9... Ne4 {[%clk 0:02:46.1]} 10.
d5 {[%clk 0:02:48.2]} 10... e5 {[%clk 0:02:36.2]} 11. dxe6 {[%clk 0:02:26.2]}
11... fxe6 {[%clk 0:02:35.3]} 12. Nbd2 {[%clk 0:02:25.9]} 12... Ndc5 {[%clk
0:02:27.2]} 13. Rad1 {[%clk 0:02:22.9]} 13... a5 {[%clk 0:02:22.7]} 14. Bh2
{[%clk 0:02:17.1]} 14... Qf6 {[%clk 0:02:09.9]} 15. Nd4 {[%clk 0:02:13]} 15...
Nxd2 {[%clk 0:01:51.4]} 16. Qxd2 {[%clk 0:02:11.2]} 16... Qg5 {[%clk 0:01:27.4]}
17. f3 {[%clk 0:02:08.9]} 17... Rae8 {[%clk 0:01:07.2]} 18. e4 {[%clk 0:01:59]}
18... Qxd2 {[%clk 0:00:54.3]} 19. Rxd2 {[%clk 0:01:59.9]} 19... Bxd4+ {[%clk
0:00:54.4]} 20. Rxd4 {[%clk 0:01:59.5]} 20... e5 {[%clk 0:00:55.3]} 21. Rd2
{[%clk 0:01:59.3]} 21... Ne6 {[%clk 0:00:55.7]} 22. Rc1 {[%clk 0:01:53.7]} 22...
a4 {[%clk 0:00:52.5]} 23. h4 {[%clk 0:01:44.4]} 23... Bc6 {[%clk 0:00:51.9]} 24.
Bg3 {[%clk 0:01:43.3]} 24... Kg7 {[%clk 0:00:47.8]} 25. Bf2 {[%clk 0:01:43]}
25... Bd7 {[%clk 0:00:29.4]} 26. b4 {[%clk 0:01:39.7]} 26... axb3 {[%clk
0:00:29.2]} 27. axb3 {[%clk 0:01:40.6]} 27... Ra8 {[%clk 0:00:29.6]} 28. b4
{[%clk 0:01:40.8]} 28... Rfd8 {[%clk 0:00:12]} 29. c5 {[%clk 0:01:25.9]} 29...
dxc5 {[%clk 0:00:09.4]} 30. bxc5 {[%clk 0:01:26.8]} 30... bxc5 {[%clk
0:00:09.9]} 31. Bxc5 {[%clk 0:01:24.2]} 31... Be8 {[%clk 0:00:10.4]} 32. Rxd8
{[%clk 0:01:19.6]} 32... Rxd8 {[%clk 0:00:11.3]} 33. Be3 {[%clk 0:01:19.3]}
33... Rd7 {[%clk 0:00:08.6]} 34. Bc4 {[%clk 0:01:09.3]} 34... Nd4 {[%clk
0:00:08.6]} 35. Kf2 {[%clk 0:01:08.4]} 35... Bf7 {[%clk 0:00:08.7]} 36. Bf1
{[%clk 0:01:03]} 36... Be6 {[%clk 0:00:04]} 37. Rc5 {[%clk 0:01:01.7]} 37... Bf7
{[%clk 0:00:01.7]} 38. Rxe5 {[%clk 0:01:01]} 38... Nc2 {[%clk 0:00:02.3]} 39.
Bf4 {[%clk 0:01:00.7]} 1-0

[Event "*** SCC Grand Prix: Titled Tuesday Blitz"]
[Site "Chess.com"]
[Date "2020.07.21"]
[Round "9"]
[White "PotapovaM"]
[Black "cassoulet"]
[Result "0-1"]
[WhiteElo "2476"]
[BlackElo "2649"]
[TimeControl "180+1"]
[EndTime "11:48:04 PDT"]
[Termination "cassoulet won by resignation"]

1. d4 {[%clk 0:03:00.9]} 1... Nf6 {[%clk 0:02:59.6]} 2. c4 {[%clk 0:03:01.5]}
2... g6 {[%clk 0:02:59.8]} 3. Nc3 {[%clk 0:03:01.8]} 3... e5 {[%clk 0:03:00.1]}
4. dxe5 {[%clk 0:03:01]} 4... Ng4 {[%clk 0:03:00.6]} 5. Nf3 {[%clk 0:02:47]}
5... Nc6 {[%clk 0:03:00]} 6. Bf4 {[%clk 0:02:40.3]} 6... Bg7 {[%clk 0:02:37.1]}
7. Bg5 {[%clk 0:02:33.2]} 7... f6 {[%clk 0:02:36.1]} 8. exf6 {[%clk 0:02:33.6]}
8... Nxf6 {[%clk 0:02:35.8]} 9. e4 {[%clk 0:02:29.5]} 9... d6 {[%clk 0:02:34.5]}
10. c5 {[%clk 0:02:05.7]} 10... O-O {[%clk 0:02:08.3]} 11. Bc4+ {[%clk
0:02:02.6]} 11... Kh8 {[%clk 0:02:07.6]} 12. cxd6 {[%clk 0:02:02.5]} 12... cxd6
{[%clk 0:02:08.5]} 13. O-O {[%clk 0:01:57.6]} 13... Bg4 {[%clk 0:02:08]} 14. h3
{[%clk 0:01:52.8]} 14... Bxf3 {[%clk 0:01:42.7]} 15. Qxf3 {[%clk 0:01:53.7]}
15... Ne5 {[%clk 0:01:43.4]} 16. Qe2 {[%clk 0:01:53.7]} 16... Qb6 {[%clk
0:01:43.9]} 17. Bxf6 {[%clk 0:01:33.4]} 17... Bxf6 {[%clk 0:01:44.8]} 18. Nd5
{[%clk 0:01:32.9]} 18... Qd4 {[%clk 0:01:37.4]} 19. Nxf6 {[%clk 0:01:17.7]}
19... Rxf6 {[%clk 0:01:30.1]} 20. Bd5 {[%clk 0:01:04.9]} 20... Nd3 {[%clk
0:01:22.4]} 21. Rad1 {[%clk 0:00:53]} 21... Nf4 {[%clk 0:01:21.6]} 22. Qg4
{[%clk 0:00:52]} 22... Qb6 {[%clk 0:01:08.7]} 23. b3 {[%clk 0:00:49.8]} 23...
Raf8 {[%clk 0:01:07.8]} 24. Kh1 {[%clk 0:00:47.7]} 24... Nh5 {[%clk 0:01:06]}
25. f3 {[%clk 0:00:43.3]} 25... Qd8 {[%clk 0:00:58.5]} 26. Kh2 {[%clk
0:00:26.2]} 26... Rf4 {[%clk 0:00:55.6]} 27. Qe6 {[%clk 0:00:26.2]} 27... R8f6
{[%clk 0:00:55.4]} 28. Qg8+ {[%clk 0:00:10]} 28... Qxg8 {[%clk 0:00:54.6]} 29.
Bxg8 {[%clk 0:00:10.9]} 29... Kxg8 {[%clk 0:00:55.5]} 30. Rd3 {[%clk 0:00:07]}
30... Ng7 {[%clk 0:00:53.3]} 31. g3 {[%clk 0:00:05.5]} 31... Rxe4 {[%clk
0:00:52.2]} 32. Rfd1 {[%clk 0:00:02.7]} 32... Re2+ {[%clk 0:00:51.7]} 33. Kg1
{[%clk 0:00:02.7]} 33... Nf5 {[%clk 0:00:51.4]} 34. g4 {[%clk 0:00:02.6]} 34...
Nh4 {[%clk 0:00:50.8]} 35. Rf1 {[%clk 0:00:01.2]} 35... Rxa2 {[%clk 0:00:50.2]}
36. f4 {[%clk 0:00:01.2]} 36... Re6 {[%clk 0:00:49.8]} 37. f5 {[%clk 0:00:01.7]}
37... Ree2 {[%clk 0:00:49.7]} 38. Kh1 {[%clk 0:00:02.2]} 38... Rh2+ {[%clk
0:00:49.7]} 0-1

[Event "*** SCC Grand Prix: Titled Tuesday Blitz"]
[Site "Chess.com"]
[Date "2020.07.21"]
[Round "9"]
[White "giantslayer83"]
[Black "deep306"]
[Result "1-0"]
[WhiteElo "2750"]
[BlackElo "2596"]
[TimeControl "180+1"]
[EndTime "11:48:05 PDT"]
[Termination "giantslayer83 won by resignation"]

1. d4 {[%clk 0:03:00.9]} 1... d5 {[%clk 0:02:58.4]} 2. c4 {[%clk 0:03:00.5]}
2... e6 {[%clk 0:02:58.9]} 3. Nc3 {[%clk 0:02:59.7]} 3... c6 {[%clk 0:02:58.7]}
4. e3 {[%clk 0:02:58.4]} 4... Nf6 {[%clk 0:02:58.2]} 5. Nf3 {[%clk 0:02:58.6]}
5... Nbd7 {[%clk 0:02:57.7]} 6. Qc2 {[%clk 0:02:58.6]} 6... Bd6 {[%clk
0:02:57.8]} 7. b3 {[%clk 0:02:55.2]} 7... O-O {[%clk 0:02:56]} 8. Be2 {[%clk
0:02:55.6]} 8... e5 {[%clk 0:02:50.8]} 9. cxd5 {[%clk 0:02:54.3]} 9... cxd5
{[%clk 0:02:50.4]} 10. Nb5 {[%clk 0:02:51.5]} 10... Bb4+ {[%clk 0:02:46.4]} 11.
Bd2 {[%clk 0:02:50.9]} 11... Bxd2+ {[%clk 0:02:44.4]} 12. Nxd2 {[%clk
0:02:51.2]} 12... a6 {[%clk 0:02:36.3]} 13. dxe5 {[%clk 0:02:39.5]} 13... Nxe5
{[%clk 0:02:35.9]} 14. Nd4 {[%clk 0:02:39.5]} 14... Bg4 {[%clk 0:02:36]} 15. O-O
{[%clk 0:02:27.3]} 15... Rc8 {[%clk 0:02:31.3]} 16. Qd1 {[%clk 0:02:27.1]} 16...
Qd6 {[%clk 0:02:18]} 17. h3 {[%clk 0:02:12.7]} 17... Bxe2 {[%clk 0:02:14.6]} 18.
Qxe2 {[%clk 0:02:13.6]} 18... g6 {[%clk 0:02:14.5]} 19. Rfd1 {[%clk 0:02:12.7]}
19... Rfd8 {[%clk 0:02:05]} 20. N2f3 {[%clk 0:01:44.6]} 20... Ne4 {[%clk
0:02:02.6]} 21. Qb2 {[%clk 0:01:40.4]} 21... Nc3 {[%clk 0:01:38.5]} 22. Rd2
{[%clk 0:01:37.2]} 22... Nxf3+ {[%clk 0:01:37]} 23. Nxf3 {[%clk 0:01:35.8]}
23... Rc7 {[%clk 0:01:30.7]} 24. Rd4 {[%clk 0:01:30.3]} 24... Rdc8 {[%clk
0:01:28]} 25. Qd2 {[%clk 0:01:26.9]} 25... b5 {[%clk 0:01:23.3]} 26. Re1 {[%clk
0:01:16.7]} 26... Qe7 {[%clk 0:01:13.2]} 27. b4 {[%clk 0:01:05]} 27... Rc4
{[%clk 0:01:06.2]} 28. a3 {[%clk 0:01:04.5]} 28... Ne4 {[%clk 0:00:56.4]} 29.
Qd1 {[%clk 0:00:59.4]} 29... Rc2 {[%clk 0:00:54.1]} 30. Rf1 {[%clk 0:00:58.4]}
30... Ra2 {[%clk 0:00:47.7]} 31. Rxd5 {[%clk 0:00:55.7]} 31... Rxa3 {[%clk
0:00:21]} 32. Qd4 {[%clk 0:00:48.6]} 32... Rac3 {[%clk 0:00:20.1]} 33. Re5
{[%clk 0:00:48.2]} 33... Qf8 {[%clk 0:00:11.7]} 34. Qxe4 {[%clk 0:00:41.5]}
34... R3c4 {[%clk 0:00:11.7]} 35. Qb7 {[%clk 0:00:41.2]} 1-0

[Event "*** SCC Grand Prix: Titled Tuesday Blitz"]
[Site "Chess.com"]
[Date "2020.07.21"]
[Round "9"]
[White "GOGIEFF"]
[Black "SantoBlue"]
[Result "1-0"]
[WhiteElo "2913"]
[BlackElo "2750"]
[TimeControl "180+1"]
[EndTime "11:48:08 PDT"]
[Termination "GOGIEFF won by resignation"]

1. d4 {[%clk 0:03:00.9]} 1... d6 {[%clk 0:02:57.7]} 2. c4 {[%clk 0:02:59.8]}
2... c5 {[%clk 0:02:57.9]} 3. Nf3 {[%clk 0:02:53.1]} 3... g6 {[%clk 0:02:55.3]}
4. Nc3 {[%clk 0:02:44.5]} 4... Bg7 {[%clk 0:02:55.5]} 5. d5 {[%clk 0:02:38.9]}
5... Bg4 {[%clk 0:02:49.9]} 6. e4 {[%clk 0:02:32.7]} 6... Nd7 {[%clk 0:02:49.7]}
7. Be2 {[%clk 0:02:28.7]} 7... Ngf6 {[%clk 0:02:49.6]} 8. O-O {[%clk 0:02:27.9]}
8... O-O {[%clk 0:02:49.9]} 9. h3 {[%clk 0:02:28.2]} 9... Bxf3 {[%clk
0:02:49.6]} 10. Bxf3 {[%clk 0:02:29.1]} 10... Ne8 {[%clk 0:02:46.4]} 11. h4
{[%clk 0:02:29.4]} 11... e6 {[%clk 0:02:34.5]} 12. Bg5 {[%clk 0:02:22]} 12...
Bf6 {[%clk 0:02:25.8]} 13. Qd2 {[%clk 0:02:10.9]} 13... e5 {[%clk 0:02:07.5]}
14. Rab1 {[%clk 0:02:00.1]} 14... Bxg5 {[%clk 0:02:01.8]} 15. hxg5 {[%clk
0:01:59.9]} 15... f6 {[%clk 0:02:01.6]} 16. gxf6 {[%clk 0:01:44.7]} 16... Nexf6
{[%clk 0:02:01.6]} 17. a3 {[%clk 0:01:40.4]} 17... Rc8 {[%clk 0:01:59.3]} 18.
Be2 {[%clk 0:01:40.3]} 18... h5 {[%clk 0:01:54.2]} 19. b4 {[%clk 0:01:37.2]}
19... Kg7 {[%clk 0:01:54.1]} 20. Qg5 {[%clk 0:01:31.6]} 20... Rf7 {[%clk
0:01:45.4]} 21. Rfd1 {[%clk 0:01:16.4]} 21... Qf8 {[%clk 0:01:44.9]} 22. Rd3
{[%clk 0:01:13.6]} 22... Nh7 {[%clk 0:01:42.9]} 23. Qh4 {[%clk 0:01:03.1]} 23...
Rf4 {[%clk 0:01:39.9]} 24. Qh3 {[%clk 0:01:03.1]} 24... Qf7 {[%clk 0:01:36.8]}
25. Rg3 {[%clk 0:00:58.6]} 25... Kh6 {[%clk 0:01:19.5]} 26. bxc5 {[%clk
0:00:54.8]} 26... Rxc5 {[%clk 0:00:52.3]} 27. Rxb7 {[%clk 0:00:53.8]} 27... Nhf6
{[%clk 0:00:52.7]} 28. Nb5 {[%clk 0:00:53.4]} 28... Qe7 {[%clk 0:00:46.1]} 29.
Qe6 {[%clk 0:00:52]} 29... Qd8 {[%clk 0:00:15.6]} 30. Nxd6 {[%clk 0:00:50.4]}
30... Qa5 {[%clk 0:00:16.1]} 31. Rxd7 {[%clk 0:00:46.6]} 31... Qe1+ {[%clk
0:00:16.2]} 32. Kh2 {[%clk 0:00:45.4]} 32... Qxf2 {[%clk 0:00:04.8]} 33. Nf7+
{[%clk 0:00:43.5]} 33... Kg7 {[%clk 0:00:05.1]} 34. Nxe5+ {[%clk 0:00:43.3]}
34... Nxd7 {[%clk 0:00:05.3]} 35. Rxg6+ {[%clk 0:00:42.1]} 1-0

[Event "*** SCC Grand Prix: Titled Tuesday Blitz"]
[Site "Chess.com"]
[Date "2020.07.21"]
[Round "9"]
[White "chessdjw"]
[Black "keepitcool9499"]
[Result "0-1"]
[WhiteElo "2673"]
[BlackElo "2595"]
[TimeControl "180+1"]
[EndTime "11:48:09 PDT"]
[Termination "keepitcool9499 won by resignation"]

1. d4 {[%clk 0:03:00.9]} 1... e6 {[%clk 0:03:00.9]} 2. c4 {[%clk 0:02:58.7]}
2... Nf6 {[%clk 0:03:01.8]} 3. Nc3 {[%clk 0:02:58.2]} 3... d5 {[%clk 0:03:02.7]}
4. cxd5 {[%clk 0:02:57.9]} 4... exd5 {[%clk 0:03:03.6]} 5. Bg5 {[%clk
0:02:56.6]} 5... Be7 {[%clk 0:03:04.1]} 6. e3 {[%clk 0:02:56.2]} 6... O-O {[%clk
0:03:03.8]} 7. Bd3 {[%clk 0:02:56.7]} 7... c6 {[%clk 0:03:03.3]} 8. Nge2 {[%clk
0:02:56.1]} 8... Nbd7 {[%clk 0:03:03.8]} 9. O-O {[%clk 0:02:54.6]} 9... Re8
{[%clk 0:03:04.2]} 10. Qc2 {[%clk 0:02:52.6]} 10... h6 {[%clk 0:03:04.7]} 11.
Bh4 {[%clk 0:02:52.2]} 11... Ne4 {[%clk 0:03:04.9]} 12. Bxe7 {[%clk 0:02:45.6]}
12... Qxe7 {[%clk 0:03:05.8]} 13. Rae1 {[%clk 0:02:42.7]} 13... f6 {[%clk
0:03:05.1]} 14. f3 {[%clk 0:02:41.2]} 14... Nd6 {[%clk 0:03:05.3]} 15. Nf4
{[%clk 0:02:35.7]} 15... Nf8 {[%clk 0:03:01.4]} 16. e4 {[%clk 0:02:19.1]} 16...
dxe4 {[%clk 0:02:58.4]} 17. fxe4 {[%clk 0:02:20]} 17... Nf7 {[%clk 0:02:57.7]}
18. e5 {[%clk 0:01:32.8]} 18... fxe5 {[%clk 0:02:50.9]} 19. Bc4 {[%clk
0:01:11.3]} 19... Ne6 {[%clk 0:02:45.1]} 20. Ng6 {[%clk 0:00:52.5]} 20... Qb4
{[%clk 0:02:37.8]} 21. Qf5 {[%clk 0:00:25.3]} 21... Nd6 {[%clk 0:02:09.2]} 22.
Bxe6+ {[%clk 0:00:07.3]} 22... Bxe6 {[%clk 0:02:10.1]} 23. Qxe5 {[%clk
0:00:06.6]} 23... Bf7 {[%clk 0:02:06]} 24. Ne7+ {[%clk 0:00:06.3]} 24... Rxe7
{[%clk 0:01:47.6]} 25. Qxe7 {[%clk 0:00:07.2]} 25... Qxd4+ {[%clk 0:01:47.9]}
26. Qe3 {[%clk 0:00:06.7]} 26... Qxe3+ {[%clk 0:01:45]} 27. Rxe3 {[%clk
0:00:07.6]} 27... Nc4 {[%clk 0:01:44.4]} 28. Re2 {[%clk 0:00:07.1]} 28... Nb6
{[%clk 0:01:41.3]} 29. Rd1 {[%clk 0:00:06.4]} 29... Bh5 {[%clk 0:01:40.1]} 30.
Re6 {[%clk 0:00:02.2]} 30... Bxd1 {[%clk 0:01:38.8]} 31. Nxd1 {[%clk 0:00:03.1]}
31... Rd8 {[%clk 0:01:38.6]} 32. Nc3 {[%clk 0:00:02.7]} 32... Nd5 {[%clk
0:01:38.7]} 33. Re2 {[%clk 0:00:03.3]} 33... Nxc3 {[%clk 0:01:38.5]} 34. bxc3
{[%clk 0:00:04.2]} 34... Rd7 {[%clk 0:01:37.3]} 35. Rb2 {[%clk 0:00:05.1]} 35...
Kf7 {[%clk 0:01:37.4]} 36. Kf2 {[%clk 0:00:05.7]} 36... Ke6 {[%clk 0:01:37.9]}
37. Ke3 {[%clk 0:00:06.4]} 37... Kd6 {[%clk 0:01:38]} 38. Rd2+ {[%clk
0:00:06.1]} 38... Ke6 {[%clk 0:01:38.4]} 39. Re2 {[%clk 0:00:05.9]} 39... Rd5
{[%clk 0:01:35.3]} 40. Kf4+ {[%clk 0:00:06.3]} 40... Kd7 {[%clk 0:01:35]} 41. c4
{[%clk 0:00:06.3]} 41... Rd4+ {[%clk 0:01:34.5]} 42. Re4 {[%clk 0:00:06]} 42...
Rxe4+ {[%clk 0:01:34.5]} 43. Kxe4 {[%clk 0:00:06.9]} 43... Ke6 {[%clk
0:01:34.5]} 44. c5 {[%clk 0:00:07]} 44... b6 {[%clk 0:01:34.3]} 45. Kd4 {[%clk
0:00:07.6]} 45... g6 {[%clk 0:01:33]} 46. g3 {[%clk 0:00:07.4]} 46... h5 {[%clk
0:01:31.3]} 47. h4 {[%clk 0:00:07]} 47... Kf5 {[%clk 0:01:31.8]} 48. a4 {[%clk
0:00:05.8]} 48... Ke6 {[%clk 0:01:32.1]} 49. cxb6 {[%clk 0:00:04.3]} 49... axb6
{[%clk 0:01:31.7]} 50. Ke4 {[%clk 0:00:05.2]} 50... Kd6 {[%clk 0:01:27.9]} 51.
Kd4 {[%clk 0:00:05.6]} 51... c5+ {[%clk 0:01:27.5]} 52. Kc4 {[%clk 0:00:06]}
52... Kc6 {[%clk 0:01:28.1]} 53. Kc3 {[%clk 0:00:06.5]} 53... b5 {[%clk
0:01:28.4]} 54. axb5+ {[%clk 0:00:06.8]} 54... Kxb5 {[%clk 0:01:28.4]} 55. Kb3
{[%clk 0:00:07.4]} 55... c4+ {[%clk 0:01:28.8]} 56. Kc3 {[%clk 0:00:08.3]} 56...
Kc5 {[%clk 0:01:29.5]} 57. Kc2 {[%clk 0:00:09.2]} 57... Kd4 {[%clk 0:01:30]} 58.
Kd2 {[%clk 0:00:09.7]} 58... Ke4 {[%clk 0:01:30.1]} 59. Kc3 {[%clk 0:00:10.5]}
59... Kf3 {[%clk 0:01:30.6]} 60. Kxc4 {[%clk 0:00:11.4]} 60... Kxg3 {[%clk
0:01:30.9]} 61. Kd4 {[%clk 0:00:12.3]} 61... Kxh4 {[%clk 0:01:31.3]} 62. Ke3
{[%clk 0:00:12.5]} 62... Kh3 {[%clk 0:01:31.1]} 63. Kf2 {[%clk 0:00:13.4]} 0-1

[Event "*** SCC Grand Prix: Titled Tuesday Blitz"]
[Site "Chess.com"]
[Date "2020.07.21"]
[Round "9"]
[White "ChronicUnhappiness"]
[Black "icychess54"]
[Result "1-0"]
[WhiteElo "2388"]
[BlackElo "2272"]
[TimeControl "180+1"]
[EndTime "11:48:14 PDT"]
[Termination "ChronicUnhappiness won by checkmate"]

1. c4 {[%clk 0:02:30.7]} 1... c6 {[%clk 0:02:58.5]} 2. d4 {[%clk 0:02:30.4]}
2... d5 {[%clk 0:02:58.9]} 3. Nf3 {[%clk 0:02:31.3]} 3... Nf6 {[%clk 0:02:58.8]}
4. cxd5 {[%clk 0:02:31.6]} 4... cxd5 {[%clk 0:02:58.7]} 5. Nc3 {[%clk
0:02:32.5]} 5... Nc6 {[%clk 0:02:59]} 6. Bf4 {[%clk 0:02:32.6]} 6... e5 {[%clk
0:02:58.8]} 7. Nxe5 {[%clk 0:02:27.5]} 7... Bd6 {[%clk 0:02:49.7]} 8. Nxc6
{[%clk 0:02:22.2]} 8... bxc6 {[%clk 0:02:48.6]} 9. Bxd6 {[%clk 0:02:20.3]} 9...
Qxd6 {[%clk 0:02:49]} 10. e3 {[%clk 0:02:14.7]} 10... O-O {[%clk 0:02:46.6]} 11.
Bd3 {[%clk 0:02:06.1]} 11... Rb8 {[%clk 0:02:43.4]} 12. b3 {[%clk 0:01:38.9]}
12... h5 {[%clk 0:02:23.6]} 13. h3 {[%clk 0:01:37.7]} 13... Re8 {[%clk
0:02:00.8]} 14. O-O {[%clk 0:01:35.6]} 14... h4 {[%clk 0:01:26.8]} 15. Rc1
{[%clk 0:01:32.3]} 15... Ne4 {[%clk 0:01:12.7]} 16. Bxe4 {[%clk 0:01:24.5]}
16... dxe4 {[%clk 0:01:12.2]} 17. Qh5 {[%clk 0:01:24.7]} 17... Qf6 {[%clk
0:01:07.6]} 18. Ne2 {[%clk 0:01:05.1]} 18... Ba6 {[%clk 0:00:54.9]} 19. Rc5
{[%clk 0:00:59.1]} 19... g6 {[%clk 0:00:37.7]} 20. Qg4 {[%clk 0:00:57.8]} 20...
Kg7 {[%clk 0:00:37]} 21. Rfc1 {[%clk 0:00:50.9]} 21... Re6 {[%clk 0:00:31.1]}
22. Nf4 {[%clk 0:00:49.7]} 22... Kh7 {[%clk 0:00:13.2]} 23. Nxe6 {[%clk
0:00:47]} 23... fxe6 {[%clk 0:00:14.1]} 24. Rxc6 {[%clk 0:00:42.8]} 24... Bd3
{[%clk 0:00:11.1]} 25. Qxe6 {[%clk 0:00:33.6]} 25... Qg5 {[%clk 0:00:07.7]} 26.
Rc7+ {[%clk 0:00:32.1]} 26... Kh6 {[%clk 0:00:07.7]} 27. R1c5 {[%clk 0:00:24.9]}
27... Qg3 {[%clk 0:00:01.6]} 28. fxg3 {[%clk 0:00:20.5]} 28... hxg3 {[%clk
0:00:02.5]} 29. Rh5+ {[%clk 0:00:18.1]} 29... Kxh5 {[%clk 0:00:01.8]} 30. Rh7+
{[%clk 0:00:17.3]} 30... Kg5 {[%clk 0:00:01.5]} 31. Qe5# {[%clk 0:00:17.3]} 1-0